fUST/lending_fUST_20251001
["ID","MTS","AMOUNT","RATE_DAILY","PERIOD"]
[388706996,1759325451287,-3000.0,0.0002153,2]
[388706997,1759325451297,-3000.0,0.0002154,2]
[388706998,1759325451306,-3000.0,0.0002155,2]
[388706999,1759325451316,-3000.0,0.0002156,2]
[388707000,1759325451325,-500.0,0.00021561,2]
[388707001,1759325451334,-1000.0,0.00021561,2]
[388707002,1759325451343,-1000.0,0.00021561,2]
[388707003,1759325451353,-1000.0,0.00021561,2]
[388707004,1759325451362,-1000.0,0.00021561,2]
[388707005,1759325451371,-500.0,0.00021561,2]
[388707006,1759325451380,-500.0,0.00021561,2]
[388707007,1759325451389,-3000.0,0.0002157,2]
[388707008,1759325451398,-1390.28841913,0.0002158,2]
[388707009,1759325451413,-1609.71158087,0.0002158,2]
[388707010,1759325451423,-244.70897977,0.0002159,2]
[388707017,1759325576747,1664.49051417,0.00019078,2]
[388707018,1759325576771,10000.01,0.00019078,2]
[388707019,1759325576794,10000.01,0.00019078,2]
[388707020,1759325576818,10000.01,0.00019078,2]
[388707021,1759325576841,10000.01,0.00019078,2]
[388707022,1759325576863,10000.01,0.00019078,2]
[388707023,1759325576888,10000.01,0.00019078,2]
[388707024,1759325576911,7735.51948583,0.00019078,2]
[388707050,1759325588311,5000.0,0.0001922,14]
[388707051,1759325596363,5000.0,0.0001922,14]
[388707052,1759325611767,2264.49051417,0.0001911,2]
[388707053,1759325611790,2735.50948583,0.0001911,2]
[388707054,1759325713534,10000.0,0.00024022,60]
[388707056,1759325734035,295.65,0.00028767,120]
[388707057,1759325739753,7264.50051417,0.00019078,2]
[388707058,1759325739778,10000.01,0.00019078,2]
[388707059,1759325739810,10000.01,0.00019078,2]
[388707060,1759325739834,10000.01,0.00019078,2]
[388707061,1759325739858,10000.01,0.00019078,2]
[388707062,1759325739880,10000.01,0.00019078,2]
[388707063,1759325740047,1387.02293745,0.00019078,2]
[388707064,1759325769053,5000.0,0.00019109,2]
[388707065,1759325770157,6000.0,0.00024647,60]
[388707067,1759325800185,4437.07870872,0.00019109,2]
[388707069,1759325815733,562.93129128,0.00019109,2]
[388707070,1759325815758,4437.06870872,0.00019109,2]
[388707071,1759325823685,3874.14741744,0.00019109,2]
[388707074,1759325841586,300.0,0.000191,2]
[388707076,1759325861991,1388.79387384,0.00019109,2]
[388707077,1759325862015,3611.20612616,0.00019109,2]
[388707078,1759325870935,318.48113458,0.00019077,2]
[388707079,1759325885012,2748.25483488,0.00019109,2]
[388707082,1759325901817,3322.06790438,0.00019078,2]
[388707083,1759325901840,10000.01,0.00019078,2]
[388707084,1759325901864,10000.01,0.00019078,2]
[388707085,1759325901888,10000.01,0.00019078,2]
[388707086,1759325901911,10000.01,0.00019078,2]
[388707087,1759325901935,10000.01,0.00019078,2]
[388707088,1759325901960,7034.20933622,0.00019078,2]
[388707089,1759325904867,477.72170181,0.00019077,2]
[388707090,1759325908547,2488.07896197,0.00019109,2]
[388707091,1759325908572,1912.3078714,0.00019109,2]
[388707092,1759325931589,2502.10798687,0.00019109,2]
[388707093,1759325935821,372.63,0.00028767,120]
[388707094,1759325947931,1113.55,0.00033785,120]
[388707095,1759325955571,183.45577325,0.00019078,2]
[388707096,1759325975420,500.0,0.00033768,60]
[388707100,1759326065603,10000.01,0.00019078,2]
[388707101,1759326065626,10000.01,0.00019078,2]
[388707102,1759326065650,10000.01,0.00019078,2]
[388707103,1759326065672,10000.01,0.00019078,2]
[388707104,1759326065694,10000.01,0.00019078,2]
[388707105,1759326065716,10000.01,0.00019078,2]
[388707109,1759326228226,10000.01,0.00019078,2]
[388707110,1759326228250,10000.01,0.00019078,2]
[388707111,1759326228272,10000.01,0.00019078,2]
[388707112,1759326228299,10000.01,0.00019078,2]
[388707113,1759326228320,83.36284651,0.00019078,2]
[388707117,1759326281572,5000.0,0.00019099,2]
[388707118,1759326289786,4916.64715349,0.00019099,2]
[388707119,1759326289811,83.35284651,0.00019099,2]
[388707120,1759326305805,5000.0,0.00019099,2]
[388707134,1759326313924,188.77387384,0.00019099,2]
[388707146,1759326329919,4727.88327965,0.00019099,2]
[388707147,1759326329943,272.11672035,0.00019099,2]
[388707155,1759326347934,319.34,0.00033775,60]
[388707156,1759326353154,1285.20329264,0.00019099,2]
[388707157,1759326377602,292.7300141,0.00018222,2]
[388707159,1759326390466,8149.95997291,0.00019078,2]
[388707160,1759326390491,10000.01,0.00019078,2]
[388707161,1759326390515,10000.01,0.00019078,2]
[388707162,1759326390537,10000.01,0.00019078,2]
[388707163,1759326390562,10000.01,0.00019078,2]
[388707164,1759326390585,10000.01,0.00019078,2]
[388707165,1759326390608,4979.5357312,0.00019078,2]
[388707166,1759326400696,658.6944,0.0002876,120]
[388707167,1759326489117,502.39,0.00019099,2]
[388707169,1759326516680,213.7785813,0.00018222,2]
[388707175,1759326554488,4304.3056875,0.00019078,2]
[388707176,1759326554513,10000.01,0.00019078,2]
[388707177,1759326554538,10000.01,0.00019078,2]
[388707178,1759326554563,10000.01,0.00019078,2]
[388707179,1759326554587,10000.01,0.00019078,2]
[388707180,1759326554611,10000.01,0.00019078,2]
[388707181,1759326554642,6718.61332358,0.00019078,2]
[388707182,1759326583775,3281.39667642,0.00019099,2]
[388707183,1759326583797,1718.60332358,0.00019099,2]
[388707185,1759326607816,1323.76574571,0.00018756,2]
[388707186,1759326608144,1323.76574571,0.00018997,2]
[388707350,1759326644020,-4864.0,0.00019168,2]
[388707351,1759326644031,-287.87,0.00019168,3]
[388707352,1759326644041,-863.61,0.00019168,3]
[388707353,1759326644052,-300.0,0.00019175,2]
[388707354,1759326644062,-1200.0,0.00019175,2]
[388707355,1759326644072,-222.26594933,0.00019176,2]
[388707356,1759326644082,-500.0,0.00019176,2]
[388707357,1759326644092,-500.0,0.00019176,2]
[388707358,1759326644102,-500.0,0.00019176,2]
[388707359,1759326644112,-500.0,0.00019176,2]
[388707360,1759326644123,-296.13030179,0.00019176,2]
[388707361,1759326644135,-500.0,0.00019176,2]
[388707362,1759326644145,-500.0,0.00019176,2]
[388707363,1759326644155,-500.0,0.00019176,2]
[388707364,1759326644165,-500.0,0.00019176,2]
[388707365,1759326644175,-658.01844446,0.00019177,2]
[388707366,1759326644186,-299.46447668,0.00019178,2]
[388707386,1759326664497,204.8013467,0.00019076,2]
[388707394,1759326717953,10000.01,0.00019078,2]
[388707395,1759326717977,10000.01,0.00019078,2]
[388707396,1759326718002,10000.01,0.00019078,2]
[388707397,1759326718025,10000.01,0.00019078,2]
[388707398,1759326718050,10000.01,0.00019078,2]
[388707399,1759326718073,894.47826568,0.00019078,2]
[388707400,1759326724552,152.24032953,0.00018936,2]
[388707404,1759326758269,1090.85,0.0001911,2]
[388707405,1759326775711,250.0,0.00019,2]
[388707406,1759326776188,250.0,0.00019005,2]
[388707407,1759326776686,250.0,0.0001901,2]
[388707408,1759326777190,250.0,0.00019015,2]
[388707409,1759326777701,250.0,0.00019021,2]
[388707411,1759326778193,250.0,0.00019026,2]
[388707412,1759326778694,250.0,0.00019031,2]
[388707413,1759326779197,250.0,0.00019036,2]
[388707414,1759326779776,250.0,0.00019042,2]
[388707415,1759326780206,250.0,0.00019047,2]
[388707416,1759326780723,250.0,0.00019052,2]
[388707417,1759326781208,250.0,0.00019057,2]
[388707418,1759326781711,250.0,0.00019063,2]
[388707419,1759326782206,250.0,0.00019068,2]
[388707420,1759326782708,250.0,0.00019073,2]
[388707421,1759326783218,250.0,0.00019078,2]
[388707422,1759326783713,250.0,0.00019084,2]
[388707423,1759326784216,250.0,0.00019089,2]
[388707424,1759326784722,250.0,0.00019094,2]
[388707425,1759326785221,250.0,0.000191,2]
[388707431,1759326844243,199.40374989,0.00018936,2]
[388707432,1759326858612,9800.60625011,0.00019078,2]
[388707433,1759326858639,10000.01,0.00019078,2]
[388707434,1759326858665,10000.01,0.00019078,2]
[388707435,1759326858691,10000.01,0.00019078,2]
[388707436,1759326858716,10000.01,0.00019078,2]
[388707437,1759326858741,10000.01,0.00019078,2]
[388707438,1759326858764,6928.88403232,0.00019078,2]
[388707445,1759327022612,3071.12596768,0.00019078,2]
[388707446,1759327022640,10000.01,0.00019078,2]
[388707447,1759327022666,10000.01,0.00019078,2]
[388707448,1759327022693,10000.01,0.00019078,2]
[388707449,1759327022718,10000.01,0.00019078,2]
[388707450,1759327022742,10000.01,0.00019078,2]
[388707451,1759327022767,10000.01,0.00019078,2]
[388707452,1759327022792,3504.97363489,0.00019078,2]
[388707453,1759327031691,322.48179412,0.00019099,2]
[388707454,1759327039931,5000.0,0.00019099,2]
[388707455,1759327041432,933.81401307,0.00019076,2]
[388707456,1759327048295,3743.71419281,0.00019099,2]
[388707457,1759327048326,913.15798786,0.00019099,2]
[388707460,1759327076547,170.6148935,0.00019076,2]
[388707462,1759327180185,366.9115465,0.00019078,2]
[388707463,1759327184830,8549.32557214,0.00019078,2]
[388707464,1759327184860,10000.01,0.00019078,2]
[388707465,1759327184888,10000.01,0.00019078,2]
[388707466,1759327184915,10000.01,0.00019078,2]
[388707467,1759327184942,10000.01,0.00019078,2]
[388707468,1759327184969,2975.73772493,0.00019078,2]
[388707469,1759327197920,155.95592423,0.00019076,2]
[388707470,1759327202922,155.95592423,0.00019078,2]
[388707471,1759327214759,1299.34472022,0.00018974,2]
[388707472,1759327217102,154.0,9.3e-07,2]
[388707473,1759327218290,154.0,9.3e-07,2]
[388707474,1759327222482,500.0,0.00033837,60]
[388707481,1759327222733,500.0,0.00033837,60]
[388707484,1759327250333,363.33837,0.00019,2]
[388707491,1759327296360,641.83664534,0.00019078,2]
[388707493,1759327335011,1299.34472022,0.00018254,2]
[388707494,1759327335353,1299.34472022,0.00018581,2]
[388707495,1759327335838,1299.34472022,0.00018852,2]
[388707498,1759327336160,201.80653039,0.00019078,2]
[388707499,1759327336183,1097.53818983,0.00019078,2]
[388707501,1759327348065,8902.47181017,0.00019078,2]
[388707502,1759327348090,10000.01,0.00019078,2]
[388707503,1759327348115,10000.01,0.00019078,2]
[388707504,1759327348141,10000.01,0.00019078,2]
[388707505,1759327348171,10000.01,0.00019078,2]
[388707506,1759327348195,1929.68807272,0.00019078,2]
[388707524,1759327458664,1299.34472022,0.00018843,2]
[388707527,1759327467343,250.0,0.00019,2]
[388707541,1759327508943,161.0,0.00019,2]
[388707543,1759327509754,161.0,0.00019,2]
[388707544,1759327512343,6198.97720706,0.00019078,2]
[388707545,1759327512369,10000.01,0.00019078,2]
[388707546,1759327512393,10000.01,0.00019078,2]
[388707547,1759327512431,10000.01,0.00019078,2]
[388707548,1759327512462,10000.01,0.00019078,2]
[388707549,1759327512490,3801.03279294,0.00019078,2]
[388707557,1759327518774,161.0,0.00019,2]
[388707565,1759327527895,161.0,0.00019,2]
[388707571,1759327539656,154.0,0.00033839,60]
[388707573,1759327557018,155.25,0.00033839,60]
[388707574,1759327566666,5876.97720706,0.00018176,2]
[388707575,1759327566697,10000.01,0.00018176,2]
[388707576,1759327566723,3060.53085884,0.00018176,2]
[388707577,1759327579586,1299.34472022,0.00018948,2]
[388707590,1759327675033,5640.13442094,0.00019078,2]
[388707591,1759327675062,10000.01,0.00019078,2]
[388707592,1759327675090,10000.01,0.00019078,2]
[388707593,1759327675118,10000.01,0.00019078,2]
[388707594,1759327675146,10000.01,0.00019078,2]
[388707595,1759327675175,10000.01,0.00019078,2]
[388707596,1759327675204,10000.01,0.00019078,2]
[388707597,1759327675232,4359.87557906,0.00019078,2]
[388707598,1759327680345,162.81,0.00016384,2]
[388707599,1759327680629,162.79,0.00016384,2]
[388707601,1759327685704,5000.0,0.00019099,2]
[388707602,1759327693849,314.53442094,0.00019099,2]
[388707603,1759327693871,1595.5575894,0.00019099,2]
[388707604,1759327702209,5000.0,0.00019099,2]
[388707605,1759327725362,1854.5745719,0.00019099,2]
[388707606,1759327740950,1423.9921744,0.00016878,2]
[388707607,1759327741384,125.8856643,0.00017257,2]
[388707608,1759327741405,1298.1065101,0.00017257,2]
[388707609,1759327741750,1423.9921744,0.00017264,2]
[388707610,1759327742157,1423.9921744,0.00017724,2]
[388707611,1759327742592,1423.9921744,0.0001782,2]
[388707612,1759327743053,1423.9921744,0.00018353,2]
[388707613,1759327743285,1423.9921744,0.00018507,2]
[388707614,1759327743736,1423.9921744,0.00018752,2]
[388707615,1759327744106,157.9504435,0.00019048,2]
[388707616,1759327744130,1266.0417309,0.00019048,2]
[388707617,1759327760040,838.3538081,0.00018176,2]
[388707618,1759327771394,3192.36838167,0.00019099,2]
[388707627,1759327831644,4703.24607933,0.00019078,2]
[388707628,1759327831670,5296.76392067,0.00019078,2]
[388707651,1759327832047,-300.0,0.00019167,2]
[388707653,1759327832057,-300.0,0.00019167,2]
[388707654,1759327832067,-300.0,0.00019167,2]
[388707655,1759327832076,-124.88292858,0.00019167,2]
[388707656,1759327832098,-175.11707142,0.00019167,2]
[388707657,1759327832107,-485.93192862,0.00019167,2]
[388707659,1759327832119,-714.06807138,0.00019167,2]
[388707661,1759327832129,-977.15,0.00019168,3]
[388707663,1759327832138,-576.9,0.00019168,3]
[388707665,1759327832148,-288.45,0.00019168,3]
[388707667,1759327832156,-865.39,0.00019168,3]
[388707668,1759327832166,-12861.47576987,0.00019175,2]
[388707670,1759327832180,-6582.9,0.00019175,2]
[388707672,1759327832192,-9694.66196293,0.00019175,2]
[388707674,1759327832202,-548.52707416,0.00019175,2]
[388707676,1759327832211,-500.0,0.00019175,2]
[388707677,1759327832220,-500.0,0.00019175,2]
[388707679,1759327832230,-500.0,0.00019175,2]
[388707681,1759327832240,-381.77466901,0.00019175,2]
[388707682,1759327832249,-500.0,0.00019175,2]
[388707684,1759327832259,-500.0,0.00019175,2]
[388707686,1759327832269,-500.0,0.00019175,2]
[388707688,1759327832278,-500.0,0.00019175,2]
[388707690,1759327832287,-500.0,0.00019175,2]
[388707692,1759327832296,-500.0,0.00019175,2]
[388707694,1759327832306,-576.58867088,0.00019175,2]
[388707696,1759327832316,-434.18774632,0.00019175,2]
[388707700,1759327832326,-500.0,0.00019175,2]
[388707702,1759327832346,-185.91144861,0.00019175,2]
[388707703,1759327832356,-368.97948845,0.00019175,2]
[388707705,1759327832365,-500.0,0.00019175,2]
[388707707,1759327832375,-500.0,0.00019175,2]
[388707709,1759327832384,-500.0,0.00019175,2]
[388707711,1759327832395,-500.0,0.00019175,2]
[388707712,1759327832405,-500.0,0.00019175,2]
[388707713,1759327832414,-500.0,0.00019175,2]
[388707714,1759327832427,-500.0,0.00019175,2]
[388707715,1759327832436,-500.0,0.00019175,2]
[388707716,1759327832446,-500.0,0.00019175,2]
[388707717,1759327832456,-500.0,0.00019175,2]
[388707718,1759327832466,-500.0,0.00019175,2]
[388707719,1759327832475,-500.0,0.00019175,2]
[388707720,1759327832485,-447.91596189,0.00019175,2]
[388707721,1759327832494,-434.64701046,0.00019175,2]
[388707722,1759327832504,-1200.0,0.00019175,2]
[388707723,1759327832513,-235.17305342,0.00019176,7]
[388707724,1759327832523,-10298.07208719,0.00019177,5]
[388707725,1759327832533,-261.52,0.00019178,2]
[388707726,1759327832543,-500.0,0.00019178,2]
[388707727,1759327832552,-500.0,0.00019178,2]
[388707728,1759327832562,-500.0,0.00019178,2]
[388707729,1759327832572,-500.0,0.00019178,2]
[388707730,1759327832581,-510.88,0.00019178,2]
[388707731,1759327832591,-500.0,0.00019178,2]
[388707732,1759327832602,-500.0,0.00019178,2]
[388707733,1759327832612,-500.0,0.00019178,2]
[388707734,1759327832622,-500.0,0.00019178,2]
[388707735,1759327832631,-500.0,0.00019178,2]
[388707736,1759327832641,-500.0,0.00019178,2]
[388707737,1759327832651,-500.0,0.00019178,2]
[388707738,1759327832661,-500.0,0.00019178,2]
[388707739,1759327832672,-500.0,0.00019178,2]
[388707740,1759327832682,-500.0,0.00019178,2]
[388707741,1759327832692,-500.0,0.00019178,2]
[388707742,1759327832702,-277.50853813,0.00019178,2]
[388707743,1759327832711,-500.0,0.00019178,2]
[388707744,1759327832722,-151.0,0.00019178,2]
[388707745,1759327832732,-500.0,0.00019178,2]
[388707746,1759327832742,-1000.0,0.00019178,2]
[388707747,1759327832754,-500.0,0.00019178,2]
[388707748,1759327832765,-500.0,0.00019178,2]
[388707749,1759327832775,-500.0,0.00019178,2]
[388707750,1759327832784,-500.0,0.00019178,2]
[388707751,1759327832795,-500.0,0.00019178,2]
[388707752,1759327832805,-500.0,0.00019178,2]
[388707753,1759327832814,-500.0,0.00019178,2]
[388707754,1759327832824,-500.0,0.00019178,2]
[388707755,1759327832834,-500.0,0.00019178,2]
[388707756,1759327832844,-500.0,0.00019178,2]
[388707757,1759327832854,-500.0,0.00019178,2]
[388707758,1759327832864,-500.0,0.00019178,2]
[388707759,1759327832873,-500.0,0.00019178,2]
[388707760,1759327832882,-500.0,0.00019178,2]
[388707761,1759327832892,-500.0,0.00019178,2]
[388707762,1759327832902,-209.60295357,0.00019178,2]
[388707763,1759327832912,-151.0,0.00019178,2]
[388707764,1759327832922,-500.0,0.00019178,2]
[388707765,1759327832931,-480.0,0.00019178,2]
[388707766,1759327832941,-500.0,0.00019178,2]
[388707767,1759327832951,-500.0,0.00019178,2]
[388707768,1759327832960,-470.81018149,0.00019178,2]
[388707769,1759327832969,-151.0,0.00019178,2]
[388707770,1759327832979,-500.0,0.00019178,2]
[388707771,1759327832989,-500.0,0.00019178,2]
[388707772,1759327832999,-383.91429953,0.00019178,2]
[388707773,1759327833010,-500.0,0.00019178,2]
[388707774,1759327833019,-500.0,0.00019178,2]
[388707775,1759327833029,-715.42,0.00019178,2]
[388707776,1759327833039,-500.0,0.00019178,2]
[388707777,1759327833048,-500.0,0.00019178,2]
[388707778,1759327833058,-500.0,0.00019178,2]
[388707779,1759327833068,-478.55626248,0.00019178,2]
[388707780,1759327833084,-500.0,0.00019178,2]
[388707781,1759327833093,-500.0,0.00019178,2]
[388707782,1759327833102,-500.0,0.00019178,2]
[388707783,1759327833112,-500.0,0.00019178,2]
[388707784,1759327833121,-500.0,0.00019178,2]
[388707785,1759327833130,-500.0,0.00019178,2]
[388707786,1759327833139,-500.0,0.00019178,2]
[388707787,1759327833149,-500.0,0.00019178,2]
[388707788,1759327833158,-500.0,0.00019178,2]
[388707789,1759327833167,-500.0,0.00019178,2]
[388707790,1759327833177,-500.0,0.00019178,2]
[388707791,1759327833187,-531.28430379,0.00019178,2]
[388707792,1759327833196,-500.0,0.00019178,2]
[388707793,1759327833206,-500.0,0.00019178,2]
[388707794,1759327833216,-151.0,0.00019178,2]
[388707795,1759327833225,-500.0,0.00019178,2]
[388707796,1759327833235,-500.0,0.00019178,2]
[388707797,1759327833244,-500.0,0.00019178,2]
[388707798,1759327833253,-500.0,0.00019178,2]
[388707799,1759327833263,-199.56748331,0.00019178,2]
[388707800,1759327833273,-500.0,0.00019178,2]
[388707801,1759327833283,-461.87228907,0.00019178,2]
[388707802,1759327833292,-1000.0,0.00019178,2]
[388707803,1759327833302,-156.21857,0.00019178,2]
[388707804,1759327833312,-500.0,0.00019178,2]
[388707805,1759327833321,-500.0,0.00019178,2]
[388707806,1759327833330,-500.0,0.00019178,2]
[388707807,1759327833340,-500.0,0.00019178,2]
[388707808,1759327833350,-500.0,0.00019178,2]
[388707809,1759327833359,-851.78,0.00019178,2]
[388707810,1759327833369,-500.0,0.00019178,2]
[388707811,1759327833378,-500.0,0.00019178,2]
[388707812,1759327833388,-500.0,0.00019178,2]
[388707813,1759327833398,-500.0,0.00019178,2]
[388707814,1759327833407,-500.0,0.00019178,2]
[388707815,1759327833417,-500.0,0.00019178,2]
[388707816,1759327833427,-500.0,0.00019178,2]
[388707817,1759327833436,-460.0,0.00019178,2]
[388707818,1759327833445,-500.0,0.00019178,2]
[388707819,1759327833455,-500.0,0.00019178,2]
[388707820,1759327833465,-500.0,0.00019178,2]
[388707821,1759327833475,-253.28657213,0.00019178,2]
[388707822,1759327833485,-463.26986576,0.00019178,2]
[388707823,1759327833494,-170.41288824,0.00019178,2]
[388707824,1759327833504,-462.83635656,0.00019178,2]
[388707825,1759327833513,-500.0,0.00019178,2]
[388707826,1759327833523,-500.0,0.00019178,2]
[388707827,1759327833533,-500.0,0.00019178,2]
[388707828,1759327833543,-500.0,0.00019178,2]
[388707829,1759327833553,-155.557944,0.00019178,2]
[388707830,1759327833563,-500.0,0.00019178,2]
[388707831,1759327833573,-151.0,0.00019178,2]
[388707832,1759327833582,-500.0,0.00019178,2]
[388707833,1759327833592,-465.24736511,0.00019178,2]
[388707834,1759327833601,-500.0,0.00019178,2]
[388707835,1759327833611,-500.0,0.00019178,2]
[388707836,1759327833620,-500.0,0.00019178,2]
[388707837,1759327833630,-152.077418,0.00019178,2]
[388707838,1759327833639,-500.0,0.00019178,2]
[388707839,1759327833649,-500.0,0.00019178,2]
[388707840,1759327833659,-500.0,0.00019178,2]
[388707841,1759327833670,-500.0,0.00019178,2]
[388707842,1759327833679,-500.0,0.00019178,2]
[388707843,1759327833689,-500.0,0.00019178,2]
[388707844,1759327833698,-152.070809,0.00019178,2]
[388707845,1759327833707,-151.0,0.00019178,2]
[388707846,1759327833717,-500.0,0.00019178,2]
[388707847,1759327833727,-500.0,0.00019178,2]
[388707848,1759327833736,-500.0,0.00019178,2]
[388707849,1759327833746,-500.0,0.00019178,2]
[388707850,1759327833756,-500.0,0.00019178,2]
[388707851,1759327833769,-602.57162395,0.00019178,2]
[388707852,1759327833778,-500.0,0.00019178,2]
[388707853,1759327833787,-500.0,0.00019178,2]
[388707854,1759327833797,-500.0,0.00019178,2]
[388707855,1759327833806,-500.0,0.00019178,2]
[388707856,1759327833815,-151.0,0.00019178,2]
[388707857,1759327833825,-500.0,0.00019178,2]
[388707858,1759327833837,-480.0,0.00019178,2]
[388707859,1759327833847,-465.26740096,0.00019178,2]
[388707860,1759327833857,-500.0,0.00019178,2]
[388707861,1759327833867,-504.51,0.00019178,2]
[388707862,1759327833876,-500.0,0.00019178,2]
[388707863,1759327833886,-500.0,0.00019178,2]
[388707864,1759327833896,-500.0,0.00019178,2]
[388707865,1759327833905,-500.0,0.00019178,2]
[388707866,1759327833915,-500.0,0.00019178,2]
[388707867,1759327833925,-151.0,0.00019178,2]
[388707868,1759327833935,-151.0,0.00019178,2]
[388707869,1759327833944,-464.02079531,0.00019178,2]
[388707870,1759327833953,-151.0,0.00019178,2]
[388707871,1759327833963,-151.0,0.00019178,2]
[388707872,1759327834118,-151.0,0.00019178,2]
[388707873,1759327834128,-151.0,0.00019178,2]
[388707874,1759327834138,-637.14,0.00019178,2]
[388707875,1759327834147,-151.0,0.00019178,2]
[388707876,1759327834157,-151.0,0.00019178,2]
[388707877,1759327834167,-475.86634205,0.00019178,2]
[388707878,1759327834176,-500.0,0.00019178,2]
[388707879,1759327834186,-500.0,0.00019178,2]
[388707880,1759327834195,-460.0,0.00019178,2]
[388707881,1759327834204,-151.0,0.00019178,2]
[388707882,1759327834214,-151.0,0.00019178,2]
[388707883,1759327834223,-500.0,0.00019178,2]
[388707884,1759327834232,-2188.24,0.00019178,2]
[388707885,1759327834242,-151.0,0.00019178,2]
[388707886,1759327834251,-172.698241,0.00019178,2]
[388707887,1759327834260,-500.0,0.00019178,2]
[388707888,1759327834269,-500.0,0.00019178,2]
[388707889,1759327834279,-462.47440965,0.00019178,2]
[388707890,1759327834288,-500.0,0.00019178,2]
[388707891,1759327834297,-500.0,0.00019178,2]
[388707892,1759327834307,-500.0,0.00019178,2]
[388707893,1759327834316,-500.0,0.00019178,2]
[388707894,1759327834327,-500.0,0.00019178,2]
[388707895,1759327834337,-500.0,0.00019178,2]
[388707896,1759327834346,-500.0,0.00019178,2]
[388707897,1759327834355,-480.0,0.00019178,2]
[388707898,1759327834365,-500.0,0.00019178,2]
[388707899,1759327834374,-500.0,0.00019178,2]
[388707900,1759327834385,-500.0,0.00019178,2]
[388707901,1759327834395,-151.0,0.00019178,2]
[388707902,1759327834404,-151.0,0.00019178,2]
[388707903,1759327834414,-500.0,0.00019178,2]
[388707904,1759327834424,-151.0,0.00019178,2]
[388707905,1759327834433,-151.579664,0.00019178,2]
[388707906,1759327834443,-500.0,0.00019178,2]
[388707907,1759327834452,-500.0,0.00019178,2]
[388707908,1759327834462,-500.0,0.00019178,2]
[388707909,1759327834471,-529.73,0.00019178,2]
[388707910,1759327834481,-500.0,0.00019178,2]
[388707911,1759327834490,-500.0,0.00019178,2]
[388707912,1759327834499,-500.0,0.00019178,2]
[388707913,1759327834509,-500.0,0.00019178,2]
[388707914,1759327834518,-500.0,0.00019178,2]
[388707915,1759327834527,-500.0,0.00019178,2]
[388707916,1759327834536,-500.0,0.00019178,2]
[388707917,1759327834546,-152.468174,0.00019178,2]
[388707918,1759327834555,-480.0,0.00019178,2]
[388707919,1759327834564,-500.0,0.00019178,2]
[388707920,1759327834574,-522.98596925,0.00019178,2]
[388707921,1759327834584,-500.0,0.00019178,2]
[388707922,1759327834593,-500.0,0.00019178,2]
[388707923,1759327834603,-462.30528913,0.00019178,2]
[388707924,1759327834612,-151.0,0.00019178,2]
[388707925,1759327834622,-177.506764,0.00019178,2]
[388707926,1759327834633,-462.55194768,0.00019178,2]
[388707927,1759327834643,-500.0,0.00019178,2]
[388707928,1759327834655,-500.0,0.00019178,2]
[388707929,1759327834665,-500.0,0.00019178,2]
[388707930,1759327834675,-480.88515607,0.00019178,2]